bitfinex-derivatives/quotes_ETHF0:USTF0_20251216
["timestamp","ask_amount","ask_price","bid_price","bid_amount"]
[1765918477414,16.05873189,2953.9,2953.5,1.919]
[1765918477614,0.00843189,2953.9,2953.8,1.4861]
[1765918478019,0.63923189,2953.9,2953.8,1.4861]
[1765918478821,1.27003189,2953.9,2953.8,1.4861]
[1765918479020,1.27003189,2953.9,2953.8,0.7638]
[1765918479217,0.00843189,2953.9,2953.8,1.4861]
[1765918479722,1.27003189,2953.9,2953.8,1.4861]
[1765918479920,0.63923189,2953.9,2953.8,1.4861]
[1765918480316,0.63923189,2953.9,2953.4,0.00507726]
[1765918480317,1.43092,2953.5,2953.4,0.00507726]
[1765918480523,1.43092,2953.5,2953.0,0.4329]
[1765918480524,1.2616,2953.1,2953.0,0.4329]
[1765918480716,10.10235,2953.1,2953.0,1.919]
[1765918480917,56.84935,2953.1,2953.0,1.919]
[1765918481114,1.2616,2953.6,2953.5,0.4319]
[1765918481424,17.1416,2953.6,2953.5,0.4319]
[1765918481619,57.9416,2953.6,2953.5,0.4319]
[1765918481923,58.11092,2953.6,2953.5,0.4319]
[1765918483327,57.48012,2953.6,2953.5,1.918]
[1765918483628,1.2616,2953.4,2953.3,0.00507726]
[1765918483830,1.2616,2953.4,2953.3,0.76887726]
[1765918484318,0.6308,2953.4,2953.3,0.76887726]
[1765918484523,0.6308,2953.4,2953.3,1.49117726]
[1765918486331,1.2616,2953.4,2953.3,0.76887726]
[1765918487927,0.6308,2953.4,2953.3,1.49117726]
[1765918488128,56.84932,2953.6,2953.5,1.1957]
[1765918488525,1.43093,2953.4,2953.3,0.00507726]
[1765918489228,16.68013,2953.4,2953.3,1.49117726]
[1765918489422,17.31093,2953.4,2953.3,1.49117726]
[1765918489623,17.31093,2953.4,2953.3,0.76887726]
[1765918490226,17.31093,2953.4,2953.3,0.00507726]
[1765918490427,1.43095,2953.1,2952.0,0.4329]
[1765918490623,17.1416,2953.0,2952.9,0.7638]
[1765918490934,16.5108,2953.0,2952.9,1.4861]
[1765918491331,0.6308,2952.8,2952.7,1.49117726]
[1765918491524,16.5108,2953.0,2952.9,1.4861]
[1765918491828,16.5118,2953.0,2952.9,1.4861]
[1765918493324,0.80015,2953.1,2953.0,1.918]
[1765918493531,16.05035,2953.1,2953.0,1.918]
[1765918493732,17.31195,2953.1,2953.0,0.4319]
[1765918494932,1.2616,2952.8,2952.7,0.76887726]
[1765918495431,0.80016,2952.9,2952.8,1.4861]
[1765918495824,0.16936,2952.9,2952.8,1.4861]
[1765918496025,17.31196,2952.9,2952.8,1.4861]
[1765918496329,17.31196,2952.9,2952.8,0.7638]
[1765918496519,17.31196,2952.9,2952.8,1.4861]
[1765918496930,16.68116,2952.9,2952.8,1.4861]
[1765918497132,17.31196,2952.9,2952.8,1.4861]
[1765918498133,16.68116,2952.9,2952.8,1.4861]
[1765918499033,0.80016,2952.9,2952.8,1.4861]
[1765918499234,16.68216,2952.9,2952.8,1.4861]
[1765918499627,3.60371411,2953.3,2953.2,1.4861]
[1765918499835,19.48571411,2953.3,2953.2,1.4861]
[1765918500336,0.00843189,2953.9,2953.5,1.918]
[1765918500637,1.2616,2953.1,2953.0,1.1957]
[1765918500836,0.6308,2953.1,2953.0,1.918]
[1765918501031,0.6308,2953.8,2953.7,1.4861]
[1765918501235,1.2616,2953.6,2953.5,1.1957]
[1765918501531,0.00843189,2953.9,2953.8,1.4861]
[1765918501930,1.27003189,2953.9,2953.5,0.4319]
[1765918502136,1.2616,2953.6,2953.5,1.1957]
[1765918502533,1.2616,2953.6,2953.5,0.4319]
[1765918502729,0.6308,2953.1,2953.0,1.918]
[1765918503031,0.80014,2953.2,2953.1,1.4861]
[1765918503930,1.2612,2953.6,2953.5,1.1886]
[1765918504135,5.3476,2953.6,2953.5,1.9434]
[1765918504334,2.34211411,2953.7,2953.5,1.9434]
[1765918504529,6.07271411,2953.7,2953.6,1.496]
[1765918504836,0.16931,2953.8,2953.7,1.496]
[1765918505227,0.6306,2953.6,2953.5,1.9434]
[1765918505424,0.16931,2953.8,2953.7,1.496]
[1765918505628,0.00843189,2953.9,2953.8,1.496]
[1765918505831,0.16927,2954.4,2954.3,1.496]
[1765918506433,40.8,2954.9,2954.8,0.7412]
[1765918506634,0.95544081,2954.9,2954.8,1.496]
[1765918506833,0.1692,2955.6,2955.5,1.9434]
[1765918507033,46.53629542,2955.6,2955.5,1.9434]
[1765918507236,56.85329542,2955.6,2955.5,1.9434]
[1765918507938,56.85329542,2955.6,2955.5,1.1886]
[1765918508739,40.97329542,2955.6,2955.5,1.1886]
[1765918508932,56.85129542,2955.6,2955.5,1.1886]
[1765918509333,56.85129542,2955.6,2955.5,1.9434]
[1765918509334,0.00409542,2955.6,2955.5,1.9434]
[1765918509638,0.00507726,2955.8,2955.7,1.496]
[1765918510441,1.48452575,2955.8,2955.7,0.7412]
[1765918510645,1.48452575,2955.8,2955.0,0.4474]
[1765918511748,0.72262575,2955.8,2955.7,0.7412]
[1765918512346,0.72262575,2955.8,2955.7,1.496]
[1765918512545,1.48452575,2955.8,2954.8,0.0032822]
[1765918512850,0.61451,2955.5,2954.8,0.0032822]
[1765918513145,0.7144,2954.9,2954.8,0.7444822]
[1765918513350,0.7144,2954.9,2954.8,1.4992822]
[1765918513543,1.4763,2954.9,2954.8,0.0032822]
[1765918514258,1.64554,2954.9,2954.8,0.0032822]
[1765918514445,1.64555,2954.7,2954.6,0.00507726]
[1765918514639,1.64555,2954.7,2953.5,0.3948]
[1765918514640,0.4453,2954.5,2953.5,0.3948]
[1765918514840,40.8,2954.4,2953.5,0.3948]
[1765918515552,42.86353485,2954.4,2953.5,0.39868437]
[1765918515751,0.00507726,2954.2,2953.7,0.00507726]
[1765918515951,0.7144,2953.8,2953.7,0.74627726]
[1765918516258,2.06353485,2954.0,2953.7,1.50107726]
[1765918516444,2.50883485,2954.0,2953.7,1.50107726]
[1765918516951,3.22323485,2954.0,2953.9,0.7412]
[1765918517148,2.77793485,2954.0,2953.9,1.496]
[1765918517455,16.76176726,2954.2,2954.1,1.496]
[1765918517643,0.00507726,2954.2,2954.1,1.496]
[1765918518245,1.48137726,2954.2,2953.7,0.00507726]
[1765918518449,0.00507726,2954.2,2954.1,1.496]
[1765918519945,1.48137726,2954.2,2954.1,0.7412]
[1765918520751,0.00507726,2954.2,2954.1,1.496]
[1765918521350,0.71947726,2954.2,2954.1,1.496]
[1765918522248,0.00507726,2954.2,2954.1,1.496]
[1765918522453,0.00507726,2954.2,2953.7,0.00507726]
[1765918522454,3.54491211,2954.2,2953.7,0.00507726]
[1765918523044,0.7144,2953.8,2953.7,0.74627726]
[1765918523250,3.53983485,2953.8,2953.7,0.74627726]
[1765918524053,3.53983485,2953.8,2953.7,0.00507726]
[1765918524351,3.70914485,2953.8,2953.7,0.00507726]
[1765918524554,3.70914485,2953.8,2953.7,0.74627726]
[1765918524949,1.9216,2954.0,2953.9,0.7412]
[1765918525150,2.78301211,2954.2,2954.1,1.496]
[1765918525448,3.54491211,2954.2,2954.1,0.7412]
[1765918525653,2.78301211,2954.2,2954.1,1.496]
[1765918526146,3.54491211,2954.2,2954.1,1.496]
[1765918526344,3.54491211,2954.2,2954.1,0.7412]
[1765918527159,0.00507726,2954.2,2954.1,1.496]
[1765918528155,0.16925,2954.9,2954.8,1.496]
[1765918528456,2.77793485,2955.2,2955.1,1.496]
[1765918528846,3.53983485,2955.2,2955.1,0.7412]
[1765918529556,0.00507726,2955.4,2955.3,1.496]
[1765918531755,0.71947726,2955.4,2955.3,1.496]
[1765918531950,0.00507726,2955.4,2955.3,1.496]
[1765918532748,0.71947726,2955.4,2955.3,1.496]
[1765918532948,0.71947726,2955.4,2955.3,0.7412]
[1765918533550,0.71947726,2955.4,2955.3,1.496]
[1765918533852,1.48137726,2955.4,2955.3,0.7412]
[1765918534052,1.48137726,2955.4,2954.5,0.4423]
[1765918534759,2.06353485,2955.2,2954.5,0.4423]
[1765918534961,2.06353485,2955.2,2954.0,0.4474]
[1765918534962,0.456,2955.0,2954.0,0.4474]
[1765918535654,0.62524,2955.0,2954.0,0.4474]
[1765918536159,0.16924,2954.9,2954.0,0.4474]
[1765918536458,0.16926,2954.7,2954.0,0.4474]
[1765918536759,0.456,2954.5,2954.0,0.4474]
[1765918536951,0.456,2954.5,2953.7,0.00507726]
[1765918537555,2.06353485,2954.4,2953.7,0.00507726]
[1765918537863,1.5351,2953.8,2953.7,0.00507726]
[1765918538249,0.9365,2953.9,2953.8,1.535]
[1765918538454,0.1693,2953.9,2953.8,1.535]
[1765918538658,1.7044,2953.9,2953.8,0.7898]
[1765918538855,1.5351,2953.8,2953.7,0.79487726]
[1765918539061,0.7672,2953.8,2953.7,0.79487726]
[1765918539261,1.5351,2953.8,2953.7,0.79487726]
[1765918539561,0.9365,2953.9,2953.8,1.535]
[1765918539864,1.7044,2953.9,2953.8,0.7898]
[1765918540458,1.5351,2953.8,2953.7,0.79487726]
[1765918541054,1.5351,2953.8,2953.7,0.00507726]
[1765918542858,1.7044,2953.9,2953.8,0.7898]
[1765918543054,1.5351,2953.8,2953.7,0.00507726]
[1765918543456,1.5351,2953.8,2953.7,0.79487726]
[1765918543863,1.5351,2953.8,2953.7,0.00507726]
[1765918545463,1.5351,2953.8,2953.7,0.79487726]
[1765918545664,1.5351,2953.8,2953.7,0.00507726]
[1765918546756,1.5351,2953.8,2953.7,0.79487726]
[1765918548357,1.5351,2953.8,2953.7,0.00507726]
[1765918549164,1.70442,2953.6,2953.5,0.00388437]
[1765918549357,3.77174824,2953.6,2953.5,0.00388437]
[1765918549860,3.77174824,2953.6,2952.5,0.442]
[1765918549861,0.16934,2953.3,2952.5,0.442]
[1765918550163,1.9911,2953.0,2952.6,0.00507726]
[1765918550365,1.9911,2953.0,2952.9,0.7898]
[1765918550556,1.9911,2953.0,2952.9,1.535]
[1765918550762,0.00507726,2953.2,2953.1,1.535]
[1765918551064,0.00507726,2953.2,2953.1,1.53861833]
[1765918557167,0.00379339,2953.6,2953.5,1.9247]
[1765918557366,0.00379339,2953.6,2953.5,1.535]
[1765918558773,0.77099339,2953.6,2953.5,1.535]
[1765918559767,1.53889339,2953.6,2953.5,0.7898]
[1765918560470,1.9911,2953.5,2953.4,0.7898]
[1765918560663,1.9911,2953.5,2953.1,0.00361833]
[1765918560861,3.59863485,2953.2,2953.1,0.00361833]
[1765918561059,2.06353485,2952.8,2952.7,1.535]
[1765918561260,2.16046,2953.0,2952.9,1.535]
[1765918561869,2.16046,2953.0,2952.6,0.00507726]
[1765918562068,2.16046,2953.0,2952.6,0.00817532]
[1765918562264,4.56,2953.5,2952.9,1.535]
[1765918562573,16.327,2953.5,2952.9,1.535]
[1765918562772,1.5351,2953.0,2952.9,0.7898]
[1765918562970,1.9911,2953.0,2952.6,0.00817532]
[1765918563272,0.7672,2952.7,2952.6,1.54317532]
[1765918563873,1.5351,2952.7,2952.6,0.00817532]
[1765918565175,0.456,2953.0,2952.7,1.5362]
[1765918565376,0.7526,2952.8,2952.7,1.5362]
[1765918565578,1.5379,2952.7,2952.6,0.00817532]
[1765918566368,0.16933,2953.3,2952.8,1.5362]
[1765918566572,1.9939,2953.5,2952.6,0.00817532]
[1765918566968,1.9939,2953.5,2953.4,0.7699]
[1765918566969,2.16322,2953.5,2953.4,0.7699]
[1765918567175,0.00379339,2953.6,2953.5,1.5362]
[1765918568079,0.00379339,2953.6,2953.5,1.9545]
[1765918568279,2.51953485,2954.5,2953.7,1.5362]
[1765918569286,0.00364385,2954.5,2954.4,1.5362]
[1765918570588,0.7526,2954.3,2954.2,0.77497726]
[1765918570992,1.5379,2954.3,2954.2,0.00507726]
[1765918571795,0.7526,2954.3,2954.2,1.54127726]
[1765918572591,1.22284385,2954.5,2954.4,0.7699]
[1765918572786,0.00364385,2954.5,2954.4,1.5362]
[1765918573184,0.75624385,2954.5,2954.4,1.5362]
[1765918574393,0.00507726,2954.7,2954.2,0.00507726]
[1765918574394,0.00507726,2954.7,2954.6,1.5362]
[1765918575594,0.0082761,2954.7,2954.6,1.5362]
[1765918576596,0.7608761,2954.7,2954.6,1.5362]
[1765918576988,0.0082761,2954.7,2954.6,1.5362]
[1765918580093,1.5461761,2954.7,2954.2,0.00507726]
[1765918580294,0.7526,2954.3,2954.2,1.54127726]
[1765918580598,2.0045,2954.5,2954.4,0.7699]
[1765918580798,2.0045,2954.5,2954.2,0.00507726]
[1765918581599,0.9301261,2954.7,2954.6,0.7699]
[1765918581797,0.0082761,2954.7,2954.6,1.5362]
[1765918582396,0.7608761,2954.7,2954.6,1.5362]
[1765918582593,0.0082761,2954.7,2954.6,1.5362]
[1765918583695,0.7608761,2954.7,2954.6,0.7699]
[1765918583886,1.5461761,2954.7,2954.6,0.7699]
[1765918584091,0.7526,2954.3,2954.2,0.77497726]
[1765918584298,1.5379,2954.3,2954.2,0.77497726]
[1765918584498,0.7526,2954.3,2954.2,1.54127726]
[1765918584698,2.0045,2954.5,2954.4,0.7699]
[1765918586389,0.7526,2954.3,2954.2,0.77497726]
[1765918586597,1.5379,2954.3,2954.2,0.77497726]
[1765918586902,0.7526,2954.3,2954.2,0.77497726]
[1765918587507,0.0082761,2954.7,2954.6,1.5362]
[1765918588104,1.5461761,2954.7,2954.2,0.00507726]
[1765918589607,1.5461761,2954.7,2954.6,0.7699]
[1765918589906,0.7608761,2954.7,2954.6,1.5362]
[1765918590107,1.5461761,2954.7,2954.6,0.7699]
[1765918590810,1.5461761,2954.7,2954.2,0.00507726]
[1765918591803,0.7526,2954.3,2954.2,1.54127726]
[1765918592011,1.5379,2954.3,2954.2,0.77497726]
[1765918592402,1.5379,2954.3,2954.2,1.54127726]
[1765918592606,0.7526,2954.5,2954.4,1.5362]
[1765918595300,1.5310761,2954.7,2954.6,0.7699]
[1765918596113,1.5310761,2954.7,2954.6,1.5]
[1765918597114,0.0082761,2954.7,2954.6,1.5]
[1765918597310,1.5363,2954.3,2954.2,0.00507726]
[1765918597607,0.16931,2953.7,2952.5,0.4363]
[1765918598412,0.16931,2953.7,2952.9,0.00507726]
[1765918598921,0.16931,2953.7,2953.0,0.4363]
[1765918599217,1.70561,2953.7,2953.0,0.4363]
[1765918599810,0.4387,2954.0,2953.6,1.4484]
[1765918600318,1.5363,2953.7,2952.9,0.00507726]
[1765918601713,1.70561,2953.7,2952.9,0.00507726]
[1765918604511,1.5363,2953.7,2952.9,0.00507726]
[1765918604717,1.975,2953.0,2952.9,0.00507726]
[1765918605919,1.70567,2952.7,2952.6,0.00309806]
[1765918607817,0.93547,2952.7,2952.6,1.45149806]
[1765918608020,1.70567,2952.7,2952.6,0.00309806]
[1765918611119,0.00507726,2952.9,2952.8,1.4484]
[1765918617019,0.60799,2954.0,2952.8,1.4484]
[1765918617223,0.16931,2953.8,2952.8,1.4484]
[1765918617420,0.16931,2953.7,2952.8,1.4484]
[1765918618122,0.77117726,2953.5,2953.4,1.4484]
[1765918618722,1.98007726,2953.5,2953.4,0.7183]
[1765918618919,1.98007726,2953.5,2952.6,0.00309806]
[1765918619324,0.16933,2953.4,2952.6,0.00309806]
[1765918620815,0.16934,2953.3,2952.6,0.00309806]
[1765918621217,0.7661,2952.7,2952.6,0.72139806]
[1765918621424,1.5363,2952.7,2952.6,0.00309806]
[1765918621920,0.7661,2952.7,2952.6,1.45149806]
[1765918622320,0.4387,2953.0,2952.6,1.45149806]
[1765918622522,1.975,2953.0,2952.9,1.4484]
[1765918622723,1.2048,2953.0,2952.9,1.4484]
[1765918622925,1.5363,2952.7,2952.6,1.45149806]
[1765918623321,1.5363,2952.7,2952.6,0.00309806]
[1765918623526,0.7661,2952.7,2952.6,1.45149806]
[1765918624234,1.5363,2952.7,2952.6,1.45149806]
[1765918624422,1.5363,2952.7,2952.6,0.00309806]
[1765918625439,1.9608,2952.5,2951.1,0.16946]
[1765918625821,1.9608,2952.5,2952.4,0.73747726]
[1765918626025,1.9608,2952.5,2952.4,0.00507726]
[1765918626225,1.96444242,2952.5,2952.4,0.00883218]
[1765918627637,1.96444242,2952.5,2952.4,1.47073218]
[1765918627840,0.00364242,2952.5,2952.4,1.47073218]
[1765918629337,1.96444242,2952.5,2952.4,0.00883218]
[1765918630235,2.13382242,2952.5,2952.4,0.00883218]
[1765918631439,2.13382242,2952.5,2952.4,0.74123218]
[1765918631738,1.21734242,2952.5,2952.4,0.74123218]
[1765918631947,0.00364242,2952.5,2952.4,1.47073218]
[1765918633344,1.96444242,2952.5,2952.4,0.00883218]
[1765918634344,1.21734242,2952.5,2952.4,0.74123218]
[1765918634746,0.00364242,2952.5,2952.4,1.47073218]
[1765918635244,0.75464242,2952.5,2952.4,1.47073218]
[1765918635446,0.00364242,2952.5,2952.4,1.47073218]
[1765918635646,0.75464242,2952.5,2952.4,1.47073218]
[1765918635841,0.00364242,2952.5,2952.4,1.47073218]
[1765918636050,0.75464242,2952.5,2952.4,1.47073218]
[1765918636947,1.50174242,2952.5,2952.4,1.47073218]
[1765918637147,1.96444242,2952.5,2952.4,0.74123218]
[1765918637743,1.96444242,2952.5,2952.4,0.00883218]
[1765918638144,1.96444242,2952.5,2952.4,0.74123218]
[1765918638544,1.96444242,2952.5,2952.4,0.00883218]
[1765918639649,1.96444242,2952.5,2952.4,0.74123218]
[1765918640241,1.96444242,2952.5,2952.4,0.00883218]
[1765918640746,0.75464242,2952.5,2952.4,1.47073218]
[1765918641249,1.96444242,2952.5,2952.4,0.00883218]
[1765918642048,0.63211,2952.0,2950.6,0.16949]
[1765918642346,2.06547986,2951.7,2950.8,4.37881197]
[1765918643056,0.46777726,2951.5,2951.0,0.00507726]
[1765918644353,1.96587726,2951.5,2951.4,0.7324]
[1765918645048,1.96587726,2951.5,2951.0,0.00507726]
[1765918645247,0.00507726,2951.5,2951.4,1.4619]
[1765918645950,1.96587726,2951.5,2951.0,0.00507726]
[1765918647052,1.21877726,2951.5,2951.4,1.4619]
[1765918647547,1.96587726,2951.5,2951.4,1.4619]
[1765918647744,1.96587726,2951.5,2951.4,0.7324]
[1765918648850,1.96587726,2951.5,2951.0,0.00507726]
[1765918650348,0.751,2951.1,2951.0,1.46697726]
[1765918650549,1.4981,2951.1,2951.0,0.00507726]
[1765918653555,1.4981,2950.9,2950.8,0.00351086]
[1765918653749,0.4627,2951.0,2950.8,0.73591086]
[1765918653949,0.7675,2950.9,2950.8,0.73591086]
[1765918654149,1.5188,2950.9,2950.8,0.73591086]
[1765918654555,1.5188,2950.9,2950.8,0.00351086]
[1765918656452,17.3908,2950.9,2950.8,0.00351086]
[1765918657559,17.3918,2950.9,2950.8,0.00351086]
[1765918657757,1.5188,2950.9,2950.8,0.00351086]
[1765918659160,1.5188,2950.9,2950.8,0.74751086]
[1765918659555,1.5188,2950.9,2950.8,1.52031086]
[1765918660062,0.16944,2951.6,2950.9,1.5168]
[1765918660359,0.00507726,2951.5,2951.4,1.5168]
[1765918660566,0.00507726,2951.5,2950.8,0.00351086]
[1765918660567,1.95647726,2951.5,2950.8,0.17299086]
[1765918660860,1.95647726,2951.5,2950.8,0.00351086]
[1765918664958,1.5073,2950.9,2950.8,0.74751086]
[1765918665267,0.00507726,2951.5,2951.4,1.5168]
[1765918665467,0.77267726,2951.5,2951.4,1.5168]
[1765918665766,1.51237726,2951.5,2951.4,1.5168]
[1765918665963,0.00507726,2951.5,2951.4,1.5168]
[1765918668470,2.06787826,2952.4,2951.5,0.4357]
[1765918668970,2.23726826,2952.4,2951.5,0.4357]
[1765918669166,0.16939,2952.3,2951.5,0.4357]
[1765918669370,0.00507726,2952.2,2951.2,0.16945]
[1765918670468,1.51237726,2952.2,2951.5,0.4357]
[1765918671268,1.51237726,2952.2,2952.1,0.744]
[1765918671473,1.51237726,2952.2,2951.6,4.365675]
[1765918671670,1.51237726,2952.2,2951.5,0.4357]
[1765918672471,1.51237726,2952.2,2951.0,0.4363]
[1765918672472,1.9514,2952.0,2951.9,1.5168]
[1765918672964,1.9514,2952.0,2951.2,0.16945]
[1765918674274,1.9514,2952.0,2951.9,0.744]
[1765918674474,1.2117,2952.0,2951.9,0.744]
[1765918674672,1.9514,2952.0,2951.2,0.16945]
[1765918677373,1.9514,2952.0,2951.9,0.744]
[1765918679281,1.9514,2952.0,2951.3,0.16945]
[1765918681082,1.9514,2952.0,2951.0,0.4357]
[1765918681483,1.5073,2951.1,2951.0,0.744]
[1765918681879,0.4441,2951.5,2951.0,1.5168]
[1765918682080,1.9514,2951.5,2950.8,0.17299086]
[1765918682480,0.7676,2950.9,2950.8,0.91699086]
[1765918682779,0.7676,2950.9,2950.8,1.68979086]
[1765918682980,0.7676,2950.9,2950.8,1.52031086]
[1765918683176,1.5073,2950.9,2950.8,1.52031086]
[1765918683381,0.4441,2951.5,2950.8,1.52031086]
[1765918684586,0.7215,2950.9,2950.8,1.52031086]
[1765918684781,1.4994,2950.9,2950.8,1.52031086]
[1765918685380,1.4994,2950.9,2950.8,0.00351086]
[1765918685875,1.4994,2950.7,2950.6,0.00507726]
[1765918686278,0.4385,2950.5,2948.9,4.56866517]
[1765918686483,2.06787826,2950.2,2949.0,0.4357]
[1765918686686,2.06787826,2950.2,2949.1,4.41028269]
[1765918686887,2.07180338,2950.2,2949.1,4.41388684]
[1765918687289,1.9379,2949.5,2949.4,0.79257726]
[1765918687488,1.16,2949.5,2949.4,1.51787726]
[1765918687685,1.9379,2949.5,2949.4,1.51787726]
[1765918687883,0.00507726,2949.9,2949.4,1.51787726]
[1765918688384,0.00507726,2949.9,2949.8,1.5128]
[1765918690686,0.00392512,2950.2,2950.1,1.5128]
[1765918691282,1.50332512,2950.2,2950.1,0.7875]
[1765918692190,1.50332512,2950.2,2950.1,1.5128]
[1765918692390,0.00392512,2950.2,2950.1,1.5128]
[1765918692592,0.72542512,2950.2,2950.1,1.5128]
[1765918693591,1.50332512,2950.2,2949.6,0.16955]
[1765918693995,1.50332512,2950.2,2949.7,4.32022899]
[1765918694790,0.72542512,2950.2,2950.1,1.5128]
[1765918695093,1.50332512,2950.2,2950.1,1.5128]
[1765918696096,0.72542512,2950.2,2950.1,1.5128]
[1765918696485,1.50332512,2950.2,2950.1,1.5128]
[1765918696893,0.72542512,2950.2,2950.1,1.5128]
[1765918697182,1.50332512,2950.2,2950.1,0.7875]
[1765918697392,1.50332512,2950.2,2949.6,0.16955]
[1765918697792,1.50332512,2950.2,2949.7,4.43196597]
[1765918697993,1.50332512,2950.2,2950.1,0.7875]
[1765918698193,1.50332512,2950.2,2950.1,1.5128]
[1765918698992,1.50332512,2950.2,2949.6,0.16955]
[1765918699190,1.4994,2949.7,2949.6,0.7875]
[1765918699494,0.7215,2949.5,2949.4,1.51787726]
[1765918700087,0.4385,2950.0,2949.4,1.51787726]
[1765918700497,0.7215,2949.5,2949.4,1.51787726]
[1765918700999,0.4385,2950.0,2949.4,1.51787726]
[1765918701189,1.9379,2950.0,2949.9,1.5128]
[1765918701389,0.00392512,2950.2,2949.4,0.17463726]
[1765918701390,1.50332512,2950.2,2949.4,0.17463726]
[1765918701596,0.00392512,2950.2,2950.1,1.5128]
[1765918701900,1.50332512,2950.2,2950.1,0.7875]
[1765918702201,1.50332512,2950.2,2950.1,1.5128]
[1765918702700,0.72542512,2950.2,2950.1,1.5128]
[1765918703703,1.4994,2949.7,2949.6,1.68235]
[1765918704497,0.7215,2949.7,2949.6,1.68235]
[1765918704807,0.7215,2949.7,2949.6,1.5128]
[1765918705005,1.9379,2950.0,2949.9,0.7875]
[1765918705393,1.9379,2950.0,2949.4,0.00507726]
[1765918706691,0.7215,2949.5,2949.4,1.51787726]
[1765918707492,1.9379,2949.5,2949.4,0.00507726]
[1765918707899,1.4994,2949.2,2949.1,0.00360415]
[1765918709008,1.4994,2949.2,2949.1,1.51640415]
[1765918709199,0.4385,2949.5,2949.1,1.51640415]
[1765918710106,0.7215,2949.2,2949.1,1.51640415]
[1765918710606,1.16,2949.5,2949.4,1.5128]
[1765918710806,1.9379,2949.5,2949.1,0.00360415]
[1765918711203,0.7215,2949.2,2949.1,1.51640415]
[1765918711406,1.4994,2949.2,2949.1,1.51640415]
[1765918711707,1.4994,2949.2,2949.1,0.00360415]
[1765918713202,1.4994,2949.2,2949.1,0.79110415]
[1765918713407,0.4385,2949.5,2949.1,0.79110415]
[1765918713408,1.9379,2949.5,2949.4,0.7875]
[1765918714102,1.9122,2949.5,2949.4,0.7875]
[1765918714303,1.9122,2949.5,2949.1,0.00360415]
[1765918715413,0.4385,2950.0,2949.4,1.5409]
[1765918715607,1.2101,2950.0,2949.9,1.4985]
[1765918715804,1.9906,2950.0,2949.9,0.718]
[1765918716202,1.9906,2950.0,2949.3,0.16956]
[1765918716404,0.4419,2949.5,2949.1,1.50210415]
[1765918716709,1.994,2949.5,2949.1,0.00360415]
[1765918717414,0.7716,2949.2,2949.1,1.50210415]
[1765918717910,1.5521,2949.2,2949.1,0.72160415]
[1765918718309,0.7716,2949.2,2949.1,1.50210415]
[1765918718800,0.4419,2949.5,2949.1,1.50210415]
[1765918719604,0.7716,2949.2,2949.1,1.50210415]
[1765918720111,1.5521,2949.2,2949.1,0.00360415]
[1765918722010,0.61145,2949.5,2949.1,1.50210415]
[1765918722011,0.4419,2949.5,2949.1,1.50210415]
[1765918722411,1.994,2949.5,2949.4,0.718]
[1765918722610,1.994,2949.5,2949.1,0.00360415]
[1765918723715,1.5521,2949.2,2949.1,0.00360415]
[1765918725614,1.5521,2949.2,2949.1,0.72160415]
[1765918725808,1.5521,2949.2,2949.1,0.00360415]
[1765918728814,1.5521,2949.2,2949.1,0.72160415]
[1765918729113,1.2135,2949.5,2949.4,1.4985]
[1765918729306,1.5521,2949.2,2949.1,0.00360415]
[1765918729617,1.5521,2949.2,2949.1,0.72160415]
[1765918730206,1.994,2949.5,2949.4,0.718]
[1765918730418,0.7716,2949.5,2949.4,1.4985]
[1765918730711,1.2135,2949.5,2949.4,1.4985]
[1765918730918,1.9906,2950.0,2949.9,0.718]
[1765918731114,1.9906,2950.0,2949.1,0.17318415]
[1765918731315,1.9906,2950.0,2949.2,4.3730241]
[1765918732314,1.9906,2950.0,2949.9,0.718]
[1765918732517,1.55602512,2950.2,2950.1,0.718]
[1765918732715,1.55602512,2950.2,2949.5,0.4363]
[1765918735525,1.55602512,2950.2,2949.4,0.16956]
[1765918735821,1.55602512,2950.2,2950.1,0.718]
[1765918736525,1.55602512,2950.2,2949.5,0.4363]
[1765918736823,1.55602512,2950.2,2949.4,0.16956]
[1765918737225,1.55602512,2950.2,2949.5,4.84410947]
[1765918738124,1.5521,2949.6,2949.5,0.718]
[1765918738322,1.5521,2949.6,2949.5,1.4985]
[1765918738825,0.4419,2950.0,2949.5,1.4985]
[1765918739731,1.5521,2949.6,2949.5,1.4985]
[1765918740029,0.7716,2949.6,2949.5,1.4985]
[1765918740218,1.5521,2949.1,2949.0,4.22765192]
[1765918740424,1.9338,2949.0,2948.9,0.17650919]
[1765918740624,1.5521,2949.0,2948.9,0.89450919]
[1765918740827,1.9304,2949.0,2948.9,0.17650919]
[1765918741138,8.09998,2949.0,2948.9,2.774e-05]
[1765918741324,1.5521,2947.6,2947.5,0.718]
[1765918741527,0.00252615,2947.6,2947.5,1.9717]
[1765918741723,0.00252615,2947.6,2947.5,1.97419484]
[1765918741923,1.55462615,2947.6,2947.5,0.00249484]
[1765918742325,0.00252615,2947.6,2947.5,1.97419484]
[1765918743329,1.55462615,2947.6,2947.5,0.00249484]
[1765918743526,1.55462615,2947.6,2947.3,0.00508594]
[1765918743527,1.5521,2947.4,2947.3,0.00508594]
[1765918744028,0.7716,2947.4,2947.3,1.46588594]
[1765918744230,0.7537,2947.4,2947.3,1.46588594]
[1765918744429,1.5204,2947.4,2947.3,0.00508594]
[1765918744634,1.5204,2947.4,2947.3,0.00792793]
[1765918744826,0.00252615,2947.6,2947.3,0.00792793]
[1765918744827,0.75622615,2947.6,2947.5,1.4644]
[1765918745028,1.52292615,2947.6,2947.5,0.7216]
[1765918745229,1.5204,2947.4,2947.3,0.72952793]
[1765918745530,1.5204,2947.4,2947.3,0.00792793]
[1765918746328,7.5204,2947.4,2947.3,2.793e-05]
[1765918746528,1.5204,2947.4,2947.3,2.793e-05]
[1765918746937,0.75622615,2947.6,2947.5,1.9231]
[1765918747229,0.75622615,2947.6,2947.5,1.4644]
[1765918747631,0.00252615,2947.6,2947.5,1.9231]
[1765918747837,0.75622615,2947.6,2947.5,1.9231]
[1765918748140,0.7537,2947.4,2947.3,1.46781571]
[1765918748335,0.00252615,2947.6,2947.3,1.46781571]
[1765918748634,0.75622615,2947.6,2947.5,0.7216]